fUSD/lending_fUSD_20250820
["ID","MTS","AMOUNT","RATE_DAILY","PERIOD"]
[380361904,1755704273239,-428.08,0.00030684,120]
[380361905,1755704273296,-400.0,0.00030684,120]
[380361906,1755704273351,-400.0,0.00030684,120]
[380361907,1755704273408,-400.0,0.00030684,120]
[380361908,1755704273464,-400.0,0.00030684,120]
[380361909,1755704273522,-400.0,0.00030684,120]
[380361910,1755704273577,-553.6,0.00030684,120]
[380361911,1755704273628,-400.0,0.00030684,120]
[380361912,1755704273680,-796.47,0.00030684,120]
[380361913,1755704273735,-400.0,0.00030684,120]
[380361914,1755704273795,-735.34,0.00030684,120]
[380361915,1755704273853,-400.0,0.00030684,120]
[380361916,1755704273909,-300.0,0.00030684,120]
[380361917,1755704273958,-942.7,0.00030684,120]
[380361918,1755704274011,-400.0,0.00030684,120]
[380361919,1755704274064,-400.0,0.00030684,120]
[380361920,1755704274118,-827.62,0.00030684,120]
[380361921,1755704274174,-1047.27,0.00030684,120]
[380361922,1755704274225,-400.0,0.00030684,120]
[380361923,1755704274278,-400.0,0.00030684,120]
[380361924,1755704274336,-802.12,0.00030684,120]
[380361925,1755704274397,-400.0,0.00030684,120]
[380361926,1755704274457,-400.0,0.00030684,120]
[380361927,1755704274516,-293.23359906,0.00030684,120]
[380361928,1755704274571,-1298.08,0.00030684,120]
[380361929,1755704274624,-877.14,0.00030684,120]
[380361930,1755704274679,-1143.69,0.00030684,120]
[380361931,1755704274729,-400.0,0.00030684,120]
[380361932,1755704274784,-400.0,0.00030684,120]
[380361933,1755704274835,-186.07105339,0.00030684,120]
[380361934,1755704274887,-400.0,0.00030684,120]
[380361935,1755704274945,-507.35233347,0.00030684,120]
[380361936,1755704275002,-400.0,0.00030684,120]
[380361937,1755704275066,-1857.1,0.00030684,120]
[380361938,1755704275122,-400.0,0.00030684,120]
[380361939,1755704275172,-400.0,0.00030684,120]
[380361940,1755704275223,-400.0,0.00030684,120]
[380361941,1755704275272,-400.0,0.00030684,120]
[380361942,1755704275319,-691.73,0.00030684,120]
[380361943,1755704275371,-821.46,0.00030684,120]
[380361944,1755704275420,-663.97,0.00030684,120]
[380361945,1755704275474,-400.0,0.00030684,120]
[380361946,1755704275524,-992.3,0.00030684,120]
[380361947,1755704275575,-1745.01,0.00030684,120]
[380361948,1755704275621,-400.0,0.00030684,120]
[380361949,1755704275669,-1538.17,0.00030684,120]
[380361950,1755704275722,-715.94,0.00030684,120]
[380361951,1755704275768,-400.0,0.00030684,120]
[380361952,1755704275818,-400.0,0.00030684,120]
[380361953,1755704275865,-489.12,0.00030684,120]
[380361954,1755704275910,-400.0,0.00030684,120]
[380361955,1755704275957,-569.35,0.00030684,120]
[380361956,1755704276002,-930.49,0.00030684,120]
[380361957,1755704276052,-1441.9,0.00030684,120]
[380361958,1755704276104,-400.0,0.00030684,120]
[380361959,1755704276159,-400.0,0.00030684,120]
[380361960,1755704276211,-771.46,0.00030684,120]
[380361961,1755704276269,-291.9558872,0.00030684,120]
[380361962,1755704276325,-689.22,0.00030684,120]
[380361963,1755704276382,-765.56,0.00030684,120]
[380361964,1755704276436,-400.0,0.00030684,120]
[380361965,1755704276487,-400.0,0.00030684,120]
[380361966,1755704276785,-408.3646314,0.00030684,120]
[380361967,1755704276867,-636.48,0.00030684,120]
[380361968,1755704276924,-400.0,0.00030684,120]
[380361969,1755704276974,-642.67,0.00030684,120]
[380361970,1755704277026,-400.0,0.00030684,120]
[380361971,1755704277072,-1329.88,0.00030684,120]
[380361972,1755704277122,-707.72,0.00030684,120]
[380361973,1755704277177,-458.69,0.00030684,120]
[380361974,1755704277229,-400.0,0.00030684,120]
[380361975,1755704277286,-947.76,0.00030684,120]
[380361976,1755704277343,-400.0,0.00030684,120]
[380361977,1755704277396,-400.0,0.00030684,120]
[380361978,1755704277444,-947.19,0.00030684,120]
[380361979,1755704277491,-1105.82,0.00030684,120]
[380361980,1755704277539,-417.42,0.00030684,120]
[380361981,1755704277582,-400.0,0.00030684,120]
[380361982,1755704277627,-1921.22,0.00030684,120]
[380361983,1755704277674,-744.46,0.00030684,120]
[380361984,1755704277722,-400.0,0.00030684,120]
[380361985,1755704277770,-400.0,0.00030684,120]
[380361986,1755704277821,-544.14,0.00030684,120]
[380361987,1755704277869,-400.0,0.00030684,120]
[380361988,1755704277914,-400.0,0.00030684,120]
[380361989,1755704277958,-625.19,0.00030684,120]
[380361990,1755704278006,-826.39,0.00030684,120]
[380361991,1755704278065,-1083.72,0.00030684,120]
[380361992,1755704278123,-958.45,0.00030684,120]
[380361993,1755704278178,-893.19,0.00030684,120]
[380361994,1755704278234,-400.0,0.00030684,120]
[380361995,1755704278292,-822.15,0.00030684,120]
[380361996,1755704278347,-636.12,0.00030684,120]
[380361997,1755704278404,-416.29,0.00030684,120]
[380361998,1755704278455,-1496.61,0.00030684,120]
[380361999,1755704278509,-400.0,0.00030684,120]
[380362000,1755704278560,-1331.76,0.00030684,120]
[380362001,1755704278608,-545.1,0.00030684,120]
[380362002,1755704278658,-400.0,0.00030684,120]
[380362003,1755704278707,-514.34,0.00030684,120]
[380362004,1755704278758,-727.59,0.00030684,120]
[380362005,1755704278807,-400.0,0.00030684,120]
[380362006,1755704278853,-400.0,0.00030684,120]
[380362007,1755704278906,-448.97,0.00030684,120]
[380362008,1755704278954,-400.0,0.00030684,120]
[380362009,1755704279001,-400.0,0.00030684,120]
[380362010,1755704279066,-879.01,0.00030684,120]
[380362011,1755704279129,-850.01,0.00030684,120]
[380362012,1755704279193,-400.0,0.00030684,120]
[380362013,1755704279256,-416.12,0.00030684,120]
[380362014,1755704279318,-452.87,0.00030684,120]
[380362015,1755704279380,-644.15,0.00030684,120]
[380362016,1755704279438,-843.65,0.00030684,120]
[380362017,1755704279496,-400.0,0.00030684,120]
[380362018,1755704279551,-1515.72,0.00030684,120]
[380362019,1755704279603,-973.86,0.00030684,120]
[380362020,1755704279658,-400.0,0.00030684,120]
[380362021,1755704279712,-1271.89,0.00030684,120]
[380362022,1755704279767,-400.0,0.00030684,120]
[380362023,1755704279824,-757.1,0.00030684,120]
[380362024,1755704279878,-400.0,0.00030684,120]
[380362025,1755704279934,-400.0,0.00030684,120]
[380362026,1755704279988,-705.67,0.00030684,120]
[380362027,1755704280044,-400.0,0.00030684,120]
[380362028,1755704280104,-400.0,0.00030684,120]
[380362029,1755704280165,-400.0,0.00030684,120]
[380362030,1755704280227,-1534.53,0.00030684,120]
[380362031,1755704280290,-1358.41,0.00030684,120]
[380362032,1755704280352,-400.0,0.00030684,120]
[380362033,1755704280428,-400.0,0.00030684,120]
[380362034,1755704280489,-605.11,0.00030684,120]
[380362035,1755704280548,-922.44,0.00030684,120]
[380362036,1755704280608,-986.88,0.00030684,120]
[380362037,1755704280668,-802.83,0.00030684,120]
[380362038,1755704280733,-1238.48,0.00030684,120]
[380362039,1755704280791,-838.78,0.00030684,120]
[380362040,1755704280848,-400.0,0.00030684,120]
[380362041,1755704280903,-173.34653612,0.00030684,120]
[380362042,1755704280961,-423.93,0.00030684,120]
[380362043,1755704281025,-400.0,0.00030684,120]
[380362044,1755704281082,-400.0,0.00030684,120]
[380362045,1755704281140,-528.04,0.00030684,120]
[380362046,1755704281198,-1334.54,0.00030684,120]
[380362047,1755704281257,-400.0,0.00030684,120]
[380362048,1755704281312,-673.26,0.00030684,120]
[380362049,1755704281370,-912.37,0.00030684,120]
[380362050,1755704281427,-400.0,0.00030684,120]
[380362051,1755704281484,-847.82,0.00030684,120]
[380362052,1755704281544,-400.0,0.00030684,120]
[380362053,1755704281596,-1084.22,0.00030684,120]
[380362054,1755704281652,-768.89,0.00030684,120]
[380362055,1755704281704,-439.64,0.00030684,120]
[380362056,1755704281760,-730.88,0.00030684,120]
[380362057,1755704281817,-401.93,0.00030684,120]
[380362058,1755704281872,-471.05,0.00030684,120]
[380362059,1755704281931,-1390.68,0.00030684,120]
[380362060,1755704281987,-400.0,0.00030684,120]
[380362061,1755704282045,-1125.65,0.00030684,120]
[380362062,1755704282103,-670.57,0.00030684,120]
[380362063,1755704282161,-400.0,0.00030684,120]
[380362064,1755704282221,-400.0,0.00030684,120]
[380362065,1755704282288,-400.0,0.00030684,120]
[380362066,1755704282361,-400.0,0.00030684,120]
[380362067,1755704282418,-400.0,0.00030684,90]
[380362068,1755704282478,-1510.78,0.00030684,120]
[380362069,1755704282532,-688.09,0.00030684,120]
[380362070,1755704282588,-496.19,0.00030684,120]
[380362071,1755704282643,-1607.08,0.00030684,120]
[380362072,1755704282700,-498.86,0.00030684,120]
[380362073,1755704282756,-877.86,0.00030684,120]
[380362074,1755704282810,-852.83,0.00030684,120]
[380362075,1755704282865,-250.66090127,0.00030684,120]
[380362076,1755704282920,-1096.38,0.00030684,120]
[380362077,1755704282971,-1665.58,0.00030684,120]
[380362078,1755704283028,-400.0,0.00030684,120]
[380362079,1755704283104,-400.0,0.00030684,120]
[380362080,1755704283177,-1657.55,0.00030684,120]
[380362081,1755704283250,-557.31,0.00030684,120]
[380362082,1755704283764,-1579.42,0.00030684,120]
[380362083,1755704283823,-1021.36,0.00030684,120]
[380362084,1755704283885,-400.0,0.00030684,120]
[380362085,1755704283947,-1057.27,0.00030684,120]
[380362086,1755704284005,-1474.2,0.00030684,120]
[380362087,1755704284069,-1352.57,0.00030684,120]
[380362088,1755704284128,-400.0,0.00030684,120]
[380362089,1755704284190,-1105.23,0.00030684,120]
[380362090,1755704284252,-493.68,0.00030684,120]
[380362091,1755704284310,-1782.03,0.00030684,120]
[380362092,1755704284370,-965.23,0.00030684,120]
[380362093,1755704284433,-1191.69,0.00030684,120]
[380362094,1755704284492,-400.0,0.00030684,120]
[380362095,1755704284551,-400.0,0.00030684,120]
[380362096,1755704284607,-1236.06,0.00030684,120]
[380362097,1755704284664,-710.4,0.00030684,120]
[380362098,1755704284719,-400.0,0.00030684,120]
[380362099,1755704284780,-622.1,0.00030684,120]
[380362100,1755704284837,-1455.49,0.00030684,120]
[380362101,1755704284894,-400.0,0.00030684,120]
[380362102,1755704284956,-400.0,0.00030684,120]
[380362103,1755704285017,-1482.4,0.00030684,120]
[380362104,1755704285080,-726.11,0.00030684,120]
[380362105,1755704285140,-568.98,0.00030684,120]
[380362106,1755704285198,-400.0,0.00030684,120]
[380362107,1755704285257,-400.0,0.00030684,120]
[380362108,1755704285315,-725.78,0.00030684,120]
[380362109,1755704285372,-742.4,0.00030684,120]
[380362110,1755704285428,-1620.77,0.00030684,120]
[380362111,1755704285483,-1540.51,0.00030684,120]
[380362112,1755704285538,-400.0,0.00030684,120]
[380362113,1755704285592,-1235.98,0.00030684,60]
[380362114,1755704285649,-1261.05,0.00030684,120]
[380362115,1755704285705,-791.37,0.00030684,120]
[380362116,1755704285757,-400.0,0.00030684,120]
[380362117,1755704285811,-596.72,0.00030684,120]
[380362118,1755704285862,-608.01,0.00030684,120]
[380362119,1755704285916,-935.72,0.00030684,120]
[380362120,1755704285969,-1354.48,0.00030684,120]
[380362121,1755704286030,-400.0,0.00030684,120]
[380362122,1755704286086,-632.71,0.00030684,120]
[380362123,1755704286146,-419.69,0.00030684,120]
[380362124,1755704286206,-717.82,0.00030684,120]
[380362125,1755704286264,-2195.75,0.00030684,120]
[380362126,1755704286324,-400.0,0.00030684,120]
[380362127,1755704286381,-1097.88,0.00030684,120]
[380362128,1755704286439,-400.0,0.00030684,120]
[380362129,1755704286493,-519.59,0.00030684,120]
[380362130,1755704286547,-400.0,0.00030684,120]
[380362131,1755704286601,-1484.52,0.00030684,120]
[380362132,1755704286654,-1426.98,0.00030684,120]
[380362133,1755704286707,-1392.06,0.00030684,120]
[380362134,1755704286760,-400.0,0.00030684,120]
[380362135,1755704286810,-706.27,0.00030684,120]
[380362136,1755704286864,-493.84,0.00030684,120]
[380362137,1755704286918,-622.41,0.00030684,120]
[380362138,1755704286973,-1240.21,0.00030684,120]
[380362139,1755704287032,-1031.32,0.00030684,120]
[380362140,1755704287090,-400.0,0.00030684,120]
[380362141,1755704287148,-648.93,0.00030684,120]
[380362142,1755704287205,-1213.89,0.00030684,120]
[380362143,1755704287265,-400.0,0.00030684,120]
[380362144,1755704287325,-400.0,0.00030684,120]
[380362145,1755704287386,-400.0,0.00030684,120]
[380362146,1755704287444,-434.76,0.00030684,120]
[380362147,1755704287504,-446.49,0.00030684,120]
[380362148,1755704287560,-910.53,0.00030684,120]
[380362149,1755704287612,-2126.31,0.00030684,120]
[380362150,1755704287662,-681.69,0.00030684,120]
[380362151,1755704287712,-509.89,0.00030684,120]
[380362152,1755704287760,-400.0,0.00030684,120]
[380362153,1755704287810,-400.0,0.00030684,120]
[380362154,1755704287858,-400.0,0.00030684,120]
[380362155,1755704287910,-904.95,0.00030684,120]
[380362156,1755704287960,-500.0,0.00030684,120]
[380362157,1755704288013,-797.56,0.00030684,120]
[380362158,1755704288069,-1316.41,0.00030684,120]
[380362159,1755704288121,-604.52,0.00030684,120]
[380362160,1755704288176,-400.0,0.00030684,120]
[380362161,1755704288232,-2249.71,0.00030684,120]
[380362162,1755704288287,-656.33,0.00030684,120]
[380362163,1755704288345,-1514.67,0.00030684,120]
[380362164,1755704288400,-683.65,0.00030684,120]
[380362165,1755704288455,-770.36,0.00030684,120]
[380362166,1755704288515,-545.94,0.00030684,120]
[380362167,1755704288573,-871.96,0.00030684,120]
[380362168,1755704288632,-400.0,0.00030684,120]
[380362169,1755704288689,-1610.85,0.00030684,120]
[380362170,1755704288750,-489.56,0.00030684,120]
[380362171,1755704288806,-400.0,0.00030684,120]
[380362172,1755704288875,-1414.93,0.00030684,120]
[380362173,1755704288932,-1192.37,0.00030684,120]
[380362174,1755704288988,-990.05,0.00030684,120]
[380362175,1755704289043,-423.13,0.00030684,120]
[380362176,1755704289103,-400.0,0.00030684,120]
[380362177,1755704289158,-400.0,0.00030684,120]
[380362178,1755704289215,-798.49,0.00030684,120]
[380362179,1755704289273,-1094.05,0.00030684,120]
[380362180,1755704289330,-400.0,0.00030684,120]
[380362181,1755704289388,-400.0,0.00030684,120]
[380362182,1755704289443,-1866.42,0.00030684,120]
[380362183,1755704289502,-669.21,0.00030684,120]
[380362184,1755704289560,-437.13,0.00030684,120]
[380362185,1755704289619,-1165.24,0.00030684,120]
[380362186,1755704289678,-400.0,0.00030684,120]
[380362187,1755704289736,-761.12,0.00030684,120]
[380362188,1755704289791,-1082.74,0.00030684,120]
[380362189,1755704289849,-1131.91,0.00030684,120]
[380362190,1755704289904,-400.0,0.00030684,120]
[380362191,1755704289960,-1025.54,0.00030684,120]
[380362192,1755704290016,-400.0,0.00030684,120]
[380362193,1755704290075,-400.0,0.00030684,120]
[380362194,1755704290128,-1107.64,0.00030684,120]
[380362195,1755704290181,-988.53,0.00030684,120]
[380362196,1755704290236,-783.62,0.00030684,120]
[380362197,1755704290600,-1566.11,0.00030684,120]
[380362198,1755704290655,-973.51,0.00030684,120]
[380362199,1755704290704,-400.0,0.00030684,120]
[380362200,1755704290758,-400.0,0.00030684,120]
[380362201,1755704290813,-1437.7,0.00030684,120]
[380362202,1755704290876,-410.01,0.00030684,120]
[380362203,1755704290935,-2106.18,0.00030684,120]
[380362204,1755704290990,-1334.88,0.00030684,120]
[380362205,1755704291046,-1068.77,0.00030684,120]
[380362206,1755704291104,-400.0,0.00030684,120]
[380362207,1755704291166,-1044.09,0.00030684,120]
[380362208,1755704291234,-517.33,0.00030684,120]
[380362209,1755704291300,-1847.89,0.00030684,120]
[380362210,1755704291361,-1164.31,0.00030684,120]
[380362211,1755704291415,-1081.05,0.00030684,120]
[380362212,1755704291470,-1429.52,0.00030684,120]
[380362213,1755704291523,-935.17,0.00030684,120]
[380362214,1755704291578,-400.0,0.00030684,120]
[380362215,1755704291633,-1032.41,0.00030684,120]
[380362216,1755704291694,-1075.23,0.00030684,120]
[380362217,1755704291747,-400.0,0.00030684,120]
[380362218,1755704291801,-812.94,0.00030684,120]
[380362219,1755704291851,-1344.41,0.00030684,120]
[380362220,1755704291903,-400.0,0.00030684,120]
[380362221,1755704291952,-1754.93,0.00030684,120]
[380362222,1755704292000,-606.67,0.00030684,120]
[380362223,1755704292049,-2032.33,0.00030684,120]
[380362224,1755704292100,-512.68730071,0.00030684,120]
[380362225,1755704292160,-400.0,0.00030684,120]
[380362226,1755704292217,-400.0,0.00030684,120]
[380362227,1755704292271,-400.0,0.00030684,120]
[380362228,1755704292326,-639.29,0.00030684,120]
[380362229,1755704292379,-2642.61,0.00030684,120]
[380362230,1755704292435,-1094.83,0.00030684,120]
[380362231,1755704292492,-669.26,0.00030684,120]
[380362232,1755704292552,-500.17,0.00030684,120]
[380362233,1755704292602,-732.92,0.00030684,120]
[380362234,1755704292656,-1881.83,0.00030684,120]
[380362235,1755704292707,-400.0,0.00030684,120]
[380362236,1755704292757,-1508.63,0.00030684,120]
[380362237,1755704292804,-761.4,0.00030684,120]
[380362238,1755704292852,-1828.49,0.00030684,120]
[380362239,1755704292898,-1336.85,0.00030684,120]
[380362240,1755704292946,-400.0,0.00030684,120]
[380362241,1755704292992,-277.44469135,0.00030684,120]
[380362242,1755704293046,-400.0,0.00030684,120]
[380362243,1755704293101,-400.0,0.00030684,120]
[380362244,1755704293157,-400.0,0.00030684,120]
[380362245,1755704293214,-427.33,0.00030684,120]
[380362246,1755704293275,-400.0,0.00030684,120]
[380362247,1755704293332,-400.0,0.00030684,120]
[380362248,1755704293392,-1543.09,0.00030684,120]
[380362249,1755704293447,-400.0,0.00030684,120]
[380362250,1755704293504,-1045.19,0.00030684,120]
[380362251,1755704293562,-400.0,0.00030684,120]
[380362252,1755704293618,-1529.96,0.00030684,120]
[380362253,1755704293677,-1579.2,0.00030684,120]
[380362254,1755704293732,-1002.76,0.00030684,120]
[380362255,1755704293793,-659.05,0.00030684,120]
[380362256,1755704293853,-413.4,0.00030684,120]
[380362257,1755704293913,-396.39968635,0.00030684,120]
[380362258,1755704293965,-400.0,0.00030684,120]
[380362259,1755704294021,-400.0,0.00030684,120]
[380362260,1755704294076,-793.9,0.00030684,120]
[380362261,1755704294134,-400.0,0.00030684,120]
[380362262,1755704294190,-886.53,0.00030684,120]
[380362263,1755704294247,-986.8,0.00030684,120]
[380362264,1755704294296,-400.0,0.00030684,120]
[380362265,1755704294346,-400.0,0.00030684,120]
[380362266,1755704294395,-618.11,0.00030684,120]
[380362267,1755704294449,-1594.74,0.00030684,120]
[380362268,1755704294499,-400.0,0.00030684,120]
[380362269,1755704294554,-400.0,0.00030684,120]
[380362270,1755704294608,-898.93,0.00030684,120]
[380362271,1755704294664,-1378.0,0.00030684,120]
[380362272,1755704294719,-2178.59,0.00030684,120]
[380362273,1755704294789,-400.0,0.00030684,120]
[380362274,1755704294843,-669.63,0.00030684,120]
[380362275,1755704294902,-400.0,0.00030684,120]
[380362276,1755704294960,-758.69,0.00030684,120]
[380362277,1755704295019,-291.40650482,0.00030684,120]
[380362278,1755704295081,-400.0,0.00030684,120]
[380362279,1755704295141,-1782.97,0.00030684,120]
[380362280,1755704295197,-873.12,0.00030684,120]
[380362281,1755704295259,-1265.56,0.00030684,120]
[380362282,1755704295321,-400.0,0.00030684,120]
[380362283,1755704295385,-400.0,0.00030684,120]
[380362284,1755704295450,-400.0,0.00030684,120]
[380362285,1755704295513,-1408.06,0.00030684,120]
[380362286,1755704295576,-400.0,0.00030684,120]
[380362287,1755704295637,-894.97,0.00030684,120]
[380362288,1755704295697,-400.0,0.00030684,120]
[380362289,1755704295755,-499.98,0.00030684,120]
[380362290,1755704295810,-568.57,0.00030684,120]
[380362291,1755704295867,-1516.1,0.00030684,120]
[380362292,1755704295921,-1076.16,0.00030684,120]
[380362293,1755704295979,-1592.07,0.00030684,90]
[380362294,1755704296034,-735.01,0.00030684,120]
[380362295,1755704296090,-1251.82,0.00030684,120]
[380362296,1755704296146,-1621.96,0.00030684,120]
[380362297,1755704296204,-517.32,0.00030684,120]
[380362298,1755704296263,-928.34,0.00030684,120]
[380362299,1755704296323,-1262.51,0.00030684,120]
[380362300,1755704296383,-1369.25,0.00030684,120]
[380362301,1755704296438,-400.0,0.00030684,120]
[380362302,1755704296492,-400.0,0.00030684,120]
[380362303,1755704296543,-1324.59,0.00030684,120]
[380362304,1755704296599,-518.29,0.00030684,120]
[380362305,1755704296647,-1463.66,0.00030684,120]
[380362306,1755704296697,-405.99,0.00030684,120]
[380362307,1755704296751,-967.0,0.00030684,120]
[380362308,1755704296802,-917.08,0.00030684,120]
[380362309,1755704296856,-2119.93,0.00030684,120]
[380362310,1755704296905,-724.47,0.00030684,120]
[380362311,1755704296956,-400.0,0.00030684,120]
[380362312,1755704297344,-1445.47,0.00030684,120]
[380362313,1755704297400,-400.0,0.00030684,120]
[380362314,1755704297454,-1061.13,0.00030684,120]
[380362315,1755704297509,-1207.43,0.00030684,120]
[380362316,1755704297563,-1483.2,0.00030684,120]
[380362317,1755704297613,-400.0,0.00030684,120]
[380362318,1755704297664,-400.0,0.00030684,120]
[380362319,1755704297712,-428.84,0.00030684,120]
[380362320,1755704297762,-1210.13,0.00030684,120]
[380362321,1755704297811,-599.69,0.00030684,120]
[380362322,1755704297862,-400.0,0.00030684,120]
[380362323,1755704297915,-740.49,0.00030684,120]
[380362324,1755704297967,-1064.64,0.00030684,120]
[380362325,1755704298019,-434.08,0.00030684,120]
[380362326,1755704298077,-1525.7,0.00030684,120]
[380362327,1755704298136,-833.53,0.00030684,120]
[380362328,1755704298194,-816.7,0.00030684,120]
[380362329,1755704298255,-1407.72,0.00030684,120]
[380362330,1755704298314,-400.0,0.00030684,120]
[380362331,1755704298375,-1323.38,0.00030684,120]
[380362332,1755704298430,-400.0,0.00030684,120]
[380362333,1755704298491,-1711.86,0.00030684,120]
[380362334,1755704298551,-400.0,0.00030684,120]
[380362335,1755704298609,-1247.11,0.00030684,120]
[380362336,1755704298670,-1529.7,0.00030684,120]
[380362337,1755704298728,-1203.94,0.00030684,120]
[380362338,1755704298788,-400.0,0.00030684,120]
[380362339,1755704298842,-686.73,0.00030684,120]
[380362340,1755704298896,-1038.41,0.00030684,120]
[380362341,1755704298948,-599.44,0.00030684,120]
[380362342,1755704298999,-400.0,0.00030684,120]
[380362343,1755704299054,-594.6,0.00030684,120]
[380362344,1755704299109,-1151.24,0.00030684,120]
[380362345,1755704299165,-1524.89,0.00030684,120]
[380362346,1755704299218,-1071.06,0.00030684,120]
[380362347,1755704299277,-898.16,0.00030684,120]
[380362348,1755704299332,-1508.56,0.00030684,120]
[380362349,1755704299387,-2157.99,0.00030684,120]
[380362350,1755704299442,-400.0,0.00030684,120]
[380362351,1755704299494,-638.08,0.00030684,120]
[380362352,1755704299547,-958.36,0.00030684,120]
[380362353,1755704299603,-467.02,0.00030684,120]
[380362354,1755704299660,-400.0,0.00030684,120]
[380362355,1755704299715,-400.0,0.00030684,120]
[380362356,1755704299771,-533.16,0.00030684,120]
[380362357,1755704299821,-479.94,0.00030684,120]
[380362358,1755704299877,-400.0,0.00030684,120]
[380362359,1755704299930,-415.41,0.00030684,120]
[380362360,1755704299983,-448.75,0.00030684,120]
[380362361,1755704300035,-961.35,0.00030684,120]
[380362362,1755704300098,-1556.63,0.00030684,120]
[380362363,1755704300149,-400.0,0.00030684,120]
[380362364,1755704300199,-400.0,0.00030684,120]
[380362365,1755704300249,-400.0,0.00030684,120]
[380362366,1755704300299,-1388.72,0.00030684,120]
[380362367,1755704300348,-1000.0,0.00030684,120]
[380362368,1755704300397,-1020.24,0.00030684,120]
[380362369,1755704300451,-400.0,0.00030684,120]
[380362370,1755704300505,-1321.35,0.00030684,120]
[380362371,1755704300560,-756.19,0.00030684,120]
[380362372,1755704300608,-1119.32,0.00030684,120]
[380362373,1755704300657,-1212.88,0.00030684,120]
[380362374,1755704300703,-1378.26,0.00030684,120]
[380362375,1755704300751,-2593.96,0.00030684,120]
[380362376,1755704300798,-400.0,0.00030684,120]
[380362377,1755704300848,-411.19,0.00030684,120]
[380362378,1755704300894,-860.25,0.00030684,120]
[380362379,1755704300944,-400.0,0.00030684,120]
[380362380,1755704300995,-1247.29,0.00030684,120]
[380362381,1755704301047,-856.88,0.00030684,120]
[380362382,1755704301110,-400.0,0.00030684,120]
[380362383,1755704301171,-621.24,0.00030684,120]
[380362384,1755704301230,-1086.36,0.00030684,120]
[380362385,1755704301289,-400.0,0.00030684,120]
[380362386,1755704301347,-1400.33,0.00030684,120]
[380362387,1755704301402,-954.58,0.00030684,120]
[380362388,1755704301455,-1122.13,0.00030684,120]
[380362389,1755704301507,-534.88494051,0.00030684,120]
[380362390,1755704301561,-400.0,0.00030684,120]
[380362391,1755704301609,-467.99,0.00030684,120]
[380362392,1755704301660,-400.0,0.00030684,120]
[380362393,1755704301707,-776.74,0.00030684,120]
[380362394,1755704301758,-745.56,0.00030684,120]
[380362395,1755704301807,-400.72,0.00030684,120]
[380362396,1755704301858,-400.0,0.00030684,120]
[380362397,1755704301909,-400.0,0.00030684,120]
[380362398,1755704301960,-668.78,0.00030684,120]
[380362399,1755704302008,-1890.76,0.00030684,120]
[380362400,1755704302067,-808.26,0.00030684,120]
[380362401,1755704302125,-1437.42,0.00030684,120]
[380362402,1755704302203,-400.0,0.00030684,120]
[380362403,1755704302262,-408.52,0.00030684,120]